[Event "FIDE Open World Rapid 2024"]
[Site "New York"]
[Date "2024.12.27"]
[Round "9.43"]
[White "Chirila, Ioan-Cristian"]
[Black "Svane, Rasmus"]
[Result "0-1"]
[ECO "D37"]
[WhiteElo "2530"]
[BlackElo "2628"]
[Annotator "ChessBase"]
[PlyCount "102"]
[EventDate "2024.12.14"]
[EventType "swiss"]
[EventCountry "USA"]
[SourceTitle "playchess.com"]
[Source "ChessBase"]
[SourceQuality "1"]
[TimeControl "900+10"]

1. d4 {[%emt 0:00:02]} Nf6 {[%emt 0:00:02]} 2. c4 {[%emt 0:00:04]} e6 {[%emt 0:00:01]} 3. Nf3 {[%emt 0:00:03]} d5 {[%emt 0:00:03]} 4. Nc3 {[%emt 0:00:06]} a6 {[%emt 0:00:03]} 5. cxd5 {[%emt 0:00:15]} exd5 {[%emt 0:00:02]} 6. Bf4 {[%emt 0:00:15]} Bd6 {[%emt 0:00:05]} 7. Bg5 {[%emt 0:00:52]} Be6 {[%emt 0:00:50]} 8. e3 {[%emt 0:00:19]} Nbd7 {[%emt 0:00:07]} 9. Be2 {[%emt 0:00:20]} c6 {[%emt 0:00:05]} 10. O-O {[%emt 0:01:04]} Qc7 {[%emt 0:00:18]} 11. Qc2 {[%emt 0:00:28]} O-O {[%emt 0:00:13]} 12. Bh4 {[%emt 0:02:57]} Bg4 {[%emt 0:00:04]} 13. Bg3 {[%emt 0:00:18]} Bxg3 {[%emt 0:00:03]} 14. hxg3 {[%emt 0:00:02]} Qd6 {[%emt 0:04:33]} 15. Bd3 {[%emt 0:02:11]} Rfe8 {[%emt 0:02:39]} 16. Rfe1 {[%emt 0:00:15]} Rac8 {[%emt 0:00:18]} 17. a3 {[%emt 0:00:33]} g6 {[%emt 0:00:58]} 18. b4 {[%emt 0:00:29]} b5 {[%emt 0:01:37]} 19. Nd2 {[%emt 0:00:07]} Kg7 {[%emt 0:00:39]} 20. Qb2 {[%emt 0:03:39]} Rcd8 {[%emt 0:00:39]} 21. Rac1 {[%emt 0:00:32]} Re6 {[%emt 0:02:41]} 22. Nb3 {[%emt 0:01:47]} Rde8 {[%emt 0:00:14]} 23. Ne2 {[%emt 0:00:12]} R6e7 {[%emt 0:00:13]} 24. Na5 {[%emt 0:00:15]} Rc8 {[%emt 0:00:20]} 25. Qc2 {[%emt 0:01:01]} Bxe2 {[%emt 0:01:09]} 26. Rxe2 {[%emt 0:00:02]} Nb6 {[%emt 0:00:05]} 27. Qc5 {[%emt 0:00:21]} Qxc5 {[%emt 0:00:08]} 28. Rxc5 {[%emt 0:00:04]} Rec7 {[%emt 0:00:07]} 29. e4 {[%emt 0:00:11]} Nc4 {[%emt 0:00:36]} 30. exd5 {[%emt 0:00:49]} Nxa5 {[%emt 0:00:44]} 31. bxa5 {[%emt 0:00:07]} cxd5 {[%emt 0:00:02]} 32. a4 {[%emt 0:00:06]} Rxc5 {[%emt 0:00:11]} 33. dxc5 {[%emt 0:00:02]} bxa4 {[%emt 0:00:01]} 34. Ra2 {[%emt 0:00:23]} Rxc5 {[%emt 0:00:04]} 35. Rxa4 {[%emt 0:00:02]} Rc1+ {[%emt 0:00:32]} 36. Bf1 {[%emt 0:00:09]} Ne4 {[%emt 0:00:12]} 37. Rd4 {[%emt 0:00:03]} Nc3 {[%emt 0:00:08]} 38. Rd2 {[%emt 0:00:05]} Ra1 {[%emt 0:00:04]} 39. f3 {[%emt 0:00:20]} Rxa5 {[%emt 0:00:03]} 40. Kf2 {[%emt 0:00:16]} Ra3 {[%emt 0:00:07]} 41. Rd3 {[%emt 0:00:14]} Kf6 {[%emt 0:00:14]} 42. Ke3 {[%emt 0:00:09]} Ke5 {[%emt 0:00:06]} 43. Kd2 {[%emt 0:00:12]} d4 {[%emt 0:00:08]} 44. f4+ {[%emt 0:00:29]} Kd5 {[%emt 0:00:26]} 45. Kc2 {[%emt 0:00:15]} a5 {[%emt 0:00:12]} 46. Rf3 {[%emt 0:00:05]} Ra2+ {[%emt 0:00:07]} 47. Kc1 {[%emt 0:00:17]} a4 {[%emt 0:00:13]} 48. f5 {[%emt 0:00:01]} a3 {[%emt 0:00:10]} 49. fxg6 {[%emt 0:00:04]} hxg6 {[%emt 0:00:22]} 50. Rxf7 {[%emt 0:00:10]} Ra1+ {[%emt 0:00:01]} 51. Kc2 {[%emt 0:00:02]} a2 {[%emt 0:00:29]} 0-1

[Event "FIDE Open World Rapid 2024"]
[Site "New York"]
[Date "2024.12.28"]
[Round "9.43"]
[White "Ahmed, Nidal"]
[Black "Larrea, Manuel"]
[Result "0-1"]
[ECO "B50"]
[WhiteElo "1796"]
[BlackElo "2259"]
[Annotator "ChessBase"]
[PlyCount "78"]
[EventDate "2024.12.14"]
[EventType "swiss"]
[EventCountry "USA"]
[SourceTitle "playchess.com"]
[Source "ChessBase"]
[SourceQuality "1"]
[TimeControl "900+10"]

1. e4 {[%emt 0:00:02]} c5 {[%emt 0:00:01]} 2. Nf3 {[%emt 0:00:03]} Nc6 {[%emt 0:00:01]} 3. g3 {[%emt 0:00:03]} g6 {[%emt 0:00:02]} 4. Bg2 {[%emt 0:00:01]} Bg7 {[%emt 0:00:01]} 5. O-O {[%emt 0:00:05]} d6 {[%emt 0:00:08]} 6. c3 {[%emt 0:00:03]} e5 {[%emt 0:00:14]} 7. a4 {[%emt 0:00:10]} Nge7 {[%emt 0:00:08]} 8. Na3 {[%emt 0:00:04]} O-O {[%emt 0:00:08]} 9. Nc2 {[%emt 0:00:03]} Qb6 {[%emt 0:01:11]} 10. d3 {[%emt 0:00:26]} Be6 {[%emt 0:00:20]} 11. Ne3 {[%emt 0:00:24]} Rad8 {[%emt 0:00:33]} 12. Nc4 {[%emt 0:00:18]} Qc7 {[%emt 0:00:03]} 13. Ng5 {[%emt 0:00:15]} Bc8 {[%emt 0:00:26]} 14. Nf3 {[%emt 0:00:44]} d5 {[%emt 0:00:17]} 15. exd5 {[%emt 0:00:17]} Nxd5 {[%emt 0:00:04]} 16. Qc2 {[%emt 0:00:22]} Rfe8 {[%emt 0:00:28]} 17. Ne3 {[%emt 0:00:08]} Nxe3 {[%emt 0:00:38]} 18. Bxe3 {[%emt 0:00:03]} Bf5 {[%emt 0:00:03]} 19. Rfd1 {[%emt 0:00:11]} c4 {[%emt 0:00:03]} 20. Ne1 {[%emt 0:00:31]} cxd3 {[%emt 0:00:28]} 21. Qb3 {[%emt 0:00:26]} e4 {[%emt 0:00:32]} 22. h3 {[%emt 0:00:13]} Na5 {[%emt 0:01:50]} 23. Qa2 {[%emt 0:00:44]} Nc4 {[%emt 0:00:24]} 24. Bd4 {[%emt 0:00:25]} Ne5 {[%emt 0:02:01]} 25. a5 {[%emt 0:00:31]} Nc6 {[%emt 0:01:48]} 26. Bxg7 {[%emt 0:00:31]} Kxg7 {[%emt 0:00:02]} 27. a6 {[%emt 0:00:45]} b6 {[%emt 0:00:16]} 28. Qa4 {[%emt 0:00:11]} h5 {[%emt 0:00:24]} 29. Qc4 {[%emt 0:00:39]} Qd7 {[%emt 0:00:27]} 30. Qb5 {[%emt 0:00:41]} Re5 {[%emt 0:00:31]} 31. Qa4 {[%emt 0:00:43]} b5 {[%emt 0:00:44]} 32. Qa3 {[%emt 0:00:27]} Bxh3 {[%emt 0:00:30]} 33. Bxh3 {[%emt 0:00:21]} Qxh3 {[%emt 0:00:02]} 34. Ng2 {[%emt 0:00:02]} e3 {[%emt 0:01:35]} 35. fxe3 {[%emt 0:00:29]} Qxg3 {[%emt 0:00:05]} 36. Rd2 {[%emt 0:00:48]} h4 {[%emt 0:00:20]} 37. Kh1 {[%emt 0:00:38]} h3 {[%emt 0:00:33]} 38. Ne1 {[%emt 0:00:16]} Rg5 {[%emt 0:00:22]} 39. Nxd3 {[%emt 0:01:02]} Rxd3 {[%emt 0:00:03]} 0-1

[Event "FIDE Open World Rapid 2024"]
[Site "New York"]
[Date "2024.12.27"]
[Round "9.44"]
[White "Lenderman, Aleksandr"]
[Black "Le, Tuan Minh"]
[Result "1-0"]
[ECO "D45"]
[WhiteElo "2480"]
[BlackElo "2598"]
[Annotator "ChessBase"]
[PlyCount "81"]
[EventDate "2024.12.14"]
[EventType "swiss"]
[EventCountry "USA"]
[SourceTitle "playchess.com"]
[Source "ChessBase"]
[SourceQuality "1"]
[TimeControl "900+10"]

1. Nf3 {[%emt 0:00:03]} d5 {[%emt 0:00:05]} 2. e3 {[%emt 0:00:02]} Nf6 {[%emt 0:00:10]} 3. c4 {[%emt 0:00:01]} c6 {[%emt 0:00:06]} 4. Nc3 {[%emt 0:00:07]} a6 {[%emt 0:00:02]} 5. Qc2 {[%emt 0:00:02]} e6 {[%emt 0:00:07]} 6. d4 {[%emt 0:00:04]} c5 {[%emt 0:00:01]} 7. cxd5 {[%emt 0:00:06]} exd5 {[%emt 0:00:02]} 8. Be2 {[%emt 0:00:09]} Nc6 {[%emt 0:00:02]} 9. O-O {[%emt 0:00:05]} Be6 {[%emt 0:02:18]} 10. Rd1 {[%emt 0:00:02]} c4 {[%emt 0:03:07]} 11. Ng5 {[%emt 0:01:46]} Nb4 {[%emt 0:06:08]} 12. Qb1 {[%emt 0:00:12]} Qd7 {[%emt 0:00:21]} 13. Nxe6 {[%emt 0:03:58]} fxe6 {[%emt 0:00:40]} 14. e4 {[%emt 0:00:07]} g6 {[%emt 0:01:25]} 15. Bg5 {[%emt 0:03:32]} Bg7 {[%emt 0:00:01]} 16. Bxf6 {[%emt 0:01:19]} Bxf6 {[%emt 0:00:03]} 17. Bg4 {[%emt 0:00:01]} h5 {[%emt 0:02:54]} 18. Bf3 {[%emt 0:01:08]} O-O-O {[%emt 0:00:17]} 19. exd5 {[%emt 0:01:25]} exd5 {[%emt 0:00:18]} 20. b3 {[%emt 0:00:01]} Nd3 {[%emt 0:00:09]} 21. Nxd5 {[%emt 0:00:14]} Bxd4 {[%emt 0:00:11]} 22. bxc4 {[%emt 0:00:07]} Bxf2+ {[%emt 0:00:04]} 23. Kf1 {[%emt 0:00:08]} Ba7 {[%emt 0:00:15]} 24. Rxd3 {[%emt 0:00:14]} Qd6 {[%emt 0:00:01]} 25. Nf4 {[%emt 0:01:46]} Qe7 {[%emt 0:00:21]} 26. Nxg6 {[%emt 0:00:23]} Qc7 {[%emt 0:00:06]} 27. Nxh8 {[%emt 0:00:34]} Rxd3 {[%emt 0:00:12]} 28. Qxd3 {[%emt 0:00:03]} Qc5 {[%emt 0:00:02]} 29. Bxb7+ {[%emt 0:00:16]} Kc7 {[%emt 0:00:01]} 30. Qh7+ {[%emt 0:00:20]} Kb6 {[%emt 0:00:20]} 31. Bf3 {[%emt 0:00:26]} Qxc4+ {[%emt 0:00:12]} 32. Ke1 {[%emt 0:01:12]} Qc3+ {[%emt 0:00:01]} 33. Ke2 {[%emt 0:00:02]} Qb2+ {[%emt 0:00:16]} 34. Kd3 {[%emt 0:00:03]} Qa3+ {[%emt 0:00:20]} 35. Ke4 {[%emt 0:00:17]} Qa4+ {[%emt 0:00:06]} 36. Kf5 {[%emt 0:00:06]} Qc2+ {[%emt 0:00:01]} 37. Be4 {[%emt 0:00:01]} Qc5+ {[%emt 0:00:09]} 38. Ke6 {[%emt 0:00:21]} Qc4+ {[%emt 0:00:22]} 39. Bd5 {[%emt 0:00:04]} Qd4 {[%emt 0:00:07]} 40. Rb1+ {[%emt 0:00:09]} Ka5 {[%emt 0:00:01]} 41. Qc7+ {[%emt 0:00:07]} 1-0

[Event "FIDE Open World Rapid 2024"]
[Site "New York"]
[Date "2024.12.27"]
[Round "9.45"]
[White "Suleymenov, Alisher"]
[Black "Niemann, Hans Moke"]
[Result "0-1"]
[ECO "E12"]
[WhiteElo "2500"]
[BlackElo "2734"]
[Annotator "TA"]
[PlyCount "91"]
[EventDate "2024.12.14"]
[EventType "swiss"]
[EventCountry "USA"]
[SourceTitle "playchess.com"]
[Source "ChessBase"]
[SourceQuality "1"]
[TimeControl "900+10"]

{[%evp 23,91,18,26,20,12,11,16,10,10,7,4,0,10,0,0,0,0,0,0,0,0,-131,-121,-106,0,0,0,-278,-86,-191,-114,-387,-362,-691,-645,-657,-653,-940,-849,-1302,-121,-116,-115,-160,-125,-232,-221,-212,-214,-209,-203,-196,-206,-320,-307,-306,-313,-313,-313,-292,-216,-231,-228,-225,-220,-220,-143,-29981,-29982,-29980]} 1. d4 {[%emt 0:00:01]} Nf6 {[%emt 0:00:02]} 2. c4 {[%emt 0:00:02]} e6 {[%emt 0:00:02]} 3. Nf3 {[%emt 0:00:01]} b6 {[%emt 0:00:02]} 4. a3 {[%emt 0:00:03]} Bb7 {[%emt 0:00:04]} 5. Nc3 {[%emt 0:00:01]} Ne4 {[%emt 0:00:01]} 6. Nxe4 {[%emt 0:00:05]} Bxe4 {[%emt 0:00:03]} 7. e3 {[%emt 0:00:01]} Be7 {[%emt 0:00:17]} 8. Bd3 {[%emt 0:00:03]} Bb7 {[%emt 0:00:14]} 9. e4 {[%emt 0:00:09]} d6 {[%emt 0:00:07]} 10. O-O {[%emt 0:00:23]} Nd7 {[%emt 0:00:09]} 11. b4 {[%emt 0:01:29]} O-O {[%emt 0:00:15]} 12. Bb2 {[%emt 0:00:07]} c5 {[%emt 0:00:28]} 13. bxc5 {[%emt 0:00:50]} bxc5 {[%emt 0:00:10]} 14. d5 {[%emt 0:00:02]} Bf6 {[%emt 0:00:40]} 15. Rb1 {[%emt 0:00:13]} Qc7 {[%emt 0:00:04]} 16. Qc2 {[%emt 0:04:34]} Bxb2 {[%emt 0:00:42]} 17. Rxb2 {[%emt 0:00:03]} e5 {[%emt 0:00:15]} 18. Nh4 {[%emt 0:01:03]} g6 {[%emt 0:00:04]} 19. Qd2 {[%emt 0:00:45]} Rab8 {[%emt 0:00:15]} 20. g3 {[%emt 0:01:41]} Ba6 {[%emt 0:00:20]} 21. Rxb8 {[%emt 0:01:12]} Rxb8 {[%emt 0:00:11]} 22. f4 {[%emt 0:00:15]} (22. Qc3 $11 {keeps the balance.}) 22... exf4 $1 $17 {[%emt 0:00:02]} 23. gxf4 {[%emt 0:00:07]} Qd8 {[%emt 0:00:01]} ({Black should play} 23... Rb3 $17 {[%cal Oc7d8]} 24. e5 Nb6 (24... dxe5 $2 25. f5 $19) (24... Rxa3 25. e6 $16)) 24. Nf3 $11 {[%emt 0:00:12]} Qf6 {[%emt 0:00:02]} 25. Qa5 $2 {[%emt 0:01:53][%mdl 8192]} (25. Re1 $11 {and White has nothing to worry.}) 25... Rb6 $2 {[%emt 0:03:48]} (25... Qxf4 $1 $19 {...Qe3+ is the strong threat.} 26. Rf2 (26. Qxa6 $2 Qe3+ 27. Kg2 Rb2+ 28. Kg3 Qxd3 $19) 26... Nf6) 26. Qa4 {[%emt 0:00:15]} (26. f5 $17) 26... Nf8 {[%emt 0:05:40]} (26... Bc8 $19 27. Ne1 Qd4+ 28. Kh1 Kg7) 27. Qe8 $2 {[%emt 0:00:34][%mdl 8192]} (27. e5 $17 {was called for.} Qxf4 28. e6 Qe3+ (28... fxe6 29. Qe8 $11) 29. Rf2) 27... Qc3 $19 {[%emt 0:00:20]} (27... Qxf4 28. Ne5 $16) 28. f5 $2 {[%emt 0:01:46]} (28. Ng5 Rb7 (28... Qxd3 29. Qxf7+ Kh8 30. Qxf8#) 29. Rf3 Bxc4 (29... Qxa3 30. Bf1 $14) 30. Nxh7 Qe1+ (30... Bxd3 31. Qxf8+ Kxh7 32. Rh3#) 31. Kg2 Kxh7 (31... Bxd3 32. Qxf8+ Kxh7 33. Rh3+)) (28. Rd1) 28... Qxd3 $19 {[%emt 0:01:38]} 29. fxg6 {[%emt 0:00:02]} hxg6 {[%emt 0:00:03]} (29... Qxa3 30. Qxf7+ Kh8 31. Qxf8#) 30. Ng5 {[%emt 0:00:35]} Rb7 {[%emt 0:00:27]} (30... Qxc4 31. Qxf7+ Kh8 32. Qxf8#) 31. Nxf7 {[%emt 0:01:35] [#]} Qxf1+ $2 {[%emt 0:00:08]} (31... Bxc4 $3 $19 {[%csl Gc4][%cal Rd3f1][%mdl 512] has better winning chances.} 32. Nh6+ Kh7 33. Rf7+ Rxf7 34. Qxf7+ Kxh6 35. Qxf8+ Kh5) 32. Kxf1 $17 {[%emt 0:00:01]} Rxf7+ {[%emt 0:00:03]} 33. Kg1 {[%emt 0:00:12]} Bxc4 {[%emt 0:00:08]} 34. Qd8 {[%emt 0:00:07]} (34. Qb8 $17) 34... Rd7 $19 {[%emt 0:00:30]} 35. Qe8 {[%emt 0:00:04]} Bd3 {[%emt 0:01:20]} 36. Kf2 {[%emt 0:00:04]} c4 {[%emt 0:00:21]} 37. Ke3 {[%emt 0:00:03] [#]} Rh7 $1 {[%emt 0:00:55]} 38. Qd8 {[%emt 0:00:16]} (38. e5 $142 Rh3+ (38... Rxh2 $2 {is the wrong capture.} 39. e6 $18) 39. Kd4 dxe5+ (39... Rxh2 $2 40. e6 $18) 40. Qxe5) 38... Rxh2 $19 {[%emt 0:00:08]} 39. Qxd6 {[%emt 0:00:28]} Re2+ {[%emt 0:00:01]} 40. Kd4 {[%emt 0:00:03]} Rxe4+ {[%emt 0:00:02]} 41. Kc3 {[%emt 0:00:02]} Re2 {[%emt 0:00:46]} 42. Qc7 {[%emt 0:00:04]} Rc2+ {[%emt 0:00:06]} 43. Kd4 {[%emt 0:00:05]} Bf5 {[%emt 0:00:04]} 44. Qxa7 {[%emt 0:00:16]} c3 {[%emt 0:00:08]} 45. d6 $2 {[%emt 0:00:24][%mdl 8192]} (45. Qe7 $17) 45... Rc1 {[%emt 0:00:19]} 46. d7 {[%emt 0:00:17]} 0-1

[Event "FIDE Open World Rapid 2024"]
[Site "New York"]
[Date "2024.12.27"]
[Round "9.46"]
[White "Safarli, Eltaj"]
[Black "Zarnicki, Pablo"]
[Result "1-0"]
[ECO "C42"]
[WhiteElo "2610"]
[BlackElo "2514"]
[Annotator "ChessBase"]
[PlyCount "115"]
[EventDate "2024.12.14"]
[EventType "swiss"]
[EventCountry "USA"]
[SourceTitle "playchess.com"]
[Source "ChessBase"]
[SourceQuality "1"]
[TimeControl "900+10"]

1. e4 {[%emt 0:00:03]} e5 {[%emt 0:00:01]} 2. Nf3 {[%emt 0:00:01]} Nf6 {[%emt 0:00:01]} 3. Nxe5 {[%emt 0:00:09]} d6 {[%emt 0:00:01]} 4. Nf3 {[%emt 0:00:02]} Nxe4 {[%emt 0:00:02]} 5. d4 {[%emt 0:00:01]} d5 {[%emt 0:00:03]} 6. Bd3 {[%emt 0:00:02]} Nc6 {[%emt 0:00:07]} 7. O-O {[%emt 0:00:11]} Be7 {[%emt 0:00:03]} 8. Nbd2 {[%emt 0:00:21]} Bf5 {[%emt 0:00:37]} 9. Re1 {[%emt 0:00:38]} Nxd2 {[%emt 0:00:12]} 10. Qxd2 {[%emt 0:00:02]} Bxd3 {[%emt 0:00:09]} 11. Qxd3 {[%emt 0:00:02]} O-O {[%emt 0:00:07]} 12. c3 {[%emt 0:01:20]} Bf6 {[%emt 0:02:06]} 13. Bf4 {[%emt 0:00:30]} Qd7 {[%emt 0:00:09]} 14. Re2 {[%emt 0:00:46]} Rae8 {[%emt 0:00:49]} 15. Rae1 {[%emt 0:00:02]} Rxe2 {[%emt 0:00:18]} 16. Rxe2 {[%emt 0:00:09]} Ne7 {[%emt 0:01:59]} 17. Bg5 {[%emt 0:03:25]} Bxg5 {[%emt 0:00:26]} 18. Nxg5 {[%emt 0:00:02]} Ng6 {[%emt 0:00:26]} 19. Qe3 {[%emt 0:02:36]} f6 {[%emt 0:01:20]} 20. Qe6+ {[%emt 0:02:41]} Qxe6 {[%emt 0:00:06]} 21. Nxe6 {[%emt 0:00:01]} Rc8 {[%emt 0:00:44]} 22. Nc5 {[%emt 0:00:03]} b6 {[%emt 0:00:14]} 23. Nd3 {[%emt 0:00:02]} Kf7 {[%emt 0:00:13]} 24. g3 {[%emt 0:00:08]} Re8 {[%emt 0:00:17]} 25. Rc2 {[%emt 0:00:21]} Ne7 {[%emt 0:00:18]} 26. a4 {[%emt 0:00:13]} a5 {[%emt 0:00:11]} 27. h4 {[%emt 0:00:09]} Nf5 {[%emt 0:00:15]} 28. Kf1 {[%emt 0:00:35]} Nd6 {[%emt 0:00:46]} 29. b3 {[%emt 0:00:20]} g6 {[%emt 0:00:39]} 30. Nf4 {[%emt 0:00:22]} c6 {[%emt 0:00:13]} 31. c4 {[%emt 0:00:08]} dxc4 {[%emt 0:01:04]} 32. bxc4 {[%emt 0:00:01]} Re4 {[%emt 0:00:11]} 33. c5 {[%emt 0:00:05]} bxc5 {[%emt 0:00:16]} 34. Rxc5 {[%emt 0:00:01]} Rxd4 {[%emt 0:01:39]} 35. Rxa5 {[%emt 0:00:02]} Rb4 {[%emt 0:01:16]} 36. Ra6 {[%emt 0:00:32]} g5 {[%emt 0:00:05]} 37. hxg5 {[%emt 0:00:19]} fxg5 {[%emt 0:00:01]} 38. Nd3 {[%emt 0:00:02]} Rd4 {[%emt 0:00:49]} 39. Ne5+ {[%emt 0:00:05]} Ke6 {[%emt 0:00:03]} 40. Nxc6 {[%emt 0:00:46]} Rd2 {[%emt 0:00:40]} 41. Na5 {[%emt 0:00:33]} Kf5 {[%emt 0:00:38]} 42. Nb3 {[%emt 0:00:12]} Rd5 {[%emt 0:00:32]} 43. Ra5 {[%emt 0:00:41]} Rxa5 {[%emt 0:00:03]} 44. Nxa5 {[%emt 0:00:01]} h5 {[%emt 0:00:02]} 45. Nc6 {[%emt 0:00:10]} Ke4 {[%emt 0:00:17]} 46. a5 {[%emt 0:00:55]} Kd5 {[%emt 0:00:18]} 47. Nd8 {[%emt 0:00:07]} h4 {[%emt 0:00:30]} 48. g4 {[%emt 0:00:04]} Ke4 {[%emt 0:00:18]} 49. a6 {[%emt 0:00:35]} Nc8 {[%emt 0:00:02]} 50. Kg2 {[%emt 0:00:13]} Kf4 {[%emt 0:00:05]} 51. Kh3 {[%emt 0:00:02]} Ke5 {[%emt 0:00:33]} 52. Nf7+ {[%emt 0:00:42]} Kf4 {[%emt 0:00:29]} 53. Nd8 {[%emt 0:00:37]} Ke5 {[%emt 0:00:15]} 54. Nc6+ {[%emt 0:00:01]} Kf4 {[%emt 0:00:05]} 55. a7 {[%emt 0:00:21]} Nxa7 {[%emt 0:00:01]} 56. Nxa7 {[%emt 0:00:02]} Kf3 {[%emt 0:00:01]} 57. Nc6 {[%emt 0:00:23]} Kxf2 {[%emt 0:00:02]} 58. Nd4 {[%emt 0:00:01]} 1-0